[Event "*** Biggest EVER Titled Tuesday"]
[Site "Chess.com"]
[Date "2018.04.17"]
[Round "2"]
[White "platy3"]
[Black "ENEASZ"]
[Result "1-0"]
[WhiteElo "2669"]
[BlackElo "2476"]
[TimeControl "180+2"]
[EndTime "13:21:28 PDT"]
[Termination "platy3 won by checkmate"]

1. e4 {[%clk 0:03:01.5]} 1... d6 {[%clk 0:02:57.8]} 2. d4 {[%clk 0:03:02.1]}
2... Nf6 {[%clk 0:02:58.6]} 3. Nc3 {[%clk 0:03:03.8]} 3... e5 {[%clk 0:03:00]}
4. Nf3 {[%clk 0:03:04.7]} 4... Nbd7 {[%clk 0:03:00.2]} 5. Bc4 {[%clk 0:03:05.8]}
5... Be7 {[%clk 0:03:01.4]} 6. a4 {[%clk 0:03:07]} 6... O-O {[%clk 0:03:00.8]}
7. O-O {[%clk 0:03:08]} 7... c6 {[%clk 0:03:00.8]} 8. Re1 {[%clk 0:03:08.2]}
8... a5 {[%clk 0:02:48.2]} 9. Ba2 {[%clk 0:03:07.8]} 9... h6 {[%clk 0:02:34.2]}
10. h3 {[%clk 0:03:06.1]} 10... Qc7 {[%clk 0:02:24.2]} 11. Be3 {[%clk
0:03:05.5]} 11... Re8 {[%clk 0:02:24.4]} 12. Qd2 {[%clk 0:03:02.2]} 12... Nf8
{[%clk 0:02:21.7]} 13. Rad1 {[%clk 0:02:49.6]} 13... Ng6 {[%clk 0:02:21.1]} 14.
dxe5 {[%clk 0:02:33.9]} 14... dxe5 {[%clk 0:02:23]} 15. Bxh6 {[%clk 0:02:21.3]}
15... Rd8 {[%clk 0:01:31.7]} 16. Qc1 {[%clk 0:02:21.7]} 16... Rxd1 {[%clk
0:01:32.6]} 17. Rxd1 {[%clk 0:02:22.7]} 17... gxh6 {[%clk 0:01:34]} 18. Qxh6
{[%clk 0:02:22.9]} 18... Nf4 {[%clk 0:01:35.5]} 19. Ng5 {[%clk 0:02:18.4]} 19...
Be6 {[%clk 0:01:26.3]} 20. Bxe6 {[%clk 0:01:23.1]} 20... Nxe6 {[%clk 0:01:24.6]}
21. Rd3 {[%clk 0:01:22.7]} 21... Nxg5 {[%clk 0:00:51.9]} 22. Qxg5+ {[%clk
0:01:24.6]} 22... Kf8 {[%clk 0:00:53.3]} 23. Qh6+ {[%clk 0:01:23]} 23... Ke8
{[%clk 0:00:50]} 24. Qh8+ {[%clk 0:01:24.1]} 24... Bf8 {[%clk 0:00:45.2]} 25.
Qxf6 {[%clk 0:01:24.8]} 25... Ra6 {[%clk 0:00:20.8]} 26. Ne2 {[%clk 0:01:10.2]}
26... c5 {[%clk 0:00:20.1]} 27. Qf5 {[%clk 0:01:07.8]} 27... c4 {[%clk 0:00:21]}
28. Rd1 {[%clk 0:01:05.1]} 28... Re6 {[%clk 0:00:22.5]} 29. Nc3 {[%clk 0:01:04]}
29... Qb6 {[%clk 0:00:20.9]} 30. Nd5 {[%clk 0:01:03.4]} 30... Qc5 {[%clk
0:00:22]} 31. g3 {[%clk 0:00:59.2]} 31... Be7 {[%clk 0:00:22.1]} 32. Kg2 {[%clk
0:00:58.5]} 32... Bd8 {[%clk 0:00:23.3]} 33. Qh5 {[%clk 0:00:50.2]} 33... Be7
{[%clk 0:00:22]} 34. Qh8+ {[%clk 0:00:46.5]} 34... Bf8 {[%clk 0:00:23.1]} 35.
Nf6+ {[%clk 0:00:46.2]} 35... Ke7 {[%clk 0:00:22.4]} 36. Rd7# {[%clk 0:00:45.8]}
1-0

[Event "*** Biggest EVER Titled Tuesday"]
[Site "Chess.com"]
[Date "2018.04.17"]
[Round "2"]
[White "Aygehovit1992"]
[Black "ABDELAZEEZ-M"]
[Result "0-1"]
[WhiteElo "2399"]
[BlackElo "2279"]
[TimeControl "180+2"]
[EndTime "13:21:28 PDT"]
[Termination "ABDELAZEEZ-M won by resignation"]

1. e4 {[%clk 0:03:01.9]} 1... c5 {[%clk 0:03:00.3]} 2. Nf3 {[%clk 0:03:02.5]}
2... Nc6 {[%clk 0:03:01.2]} 3. Bb5 {[%clk 0:03:02.4]} 3... g6 {[%clk 0:03:01.9]}
4. Bxc6 {[%clk 0:03:02.1]} 4... bxc6 {[%clk 0:03:03]} 5. O-O {[%clk 0:03:00.4]}
5... Bg7 {[%clk 0:03:03.5]} 6. Re1 {[%clk 0:02:40.1]} 6... e5 {[%clk 0:03:04]}
7. c3 {[%clk 0:02:40.2]} 7... Ne7 {[%clk 0:03:04.6]} 8. d4 {[%clk 0:02:39.4]}
8... cxd4 {[%clk 0:03:04.2]} 9. cxd4 {[%clk 0:02:40.4]} 9... exd4 {[%clk
0:03:05]} 10. Nxd4 {[%clk 0:02:42]} 10... O-O {[%clk 0:03:03.5]} 11. Nc3 {[%clk
0:02:42.5]} 11... d5 {[%clk 0:03:03.2]} 12. Bg5 {[%clk 0:02:37.1]} 12... f6
{[%clk 0:03:00.3]} 13. Be3 {[%clk 0:02:37.5]} 13... c5 {[%clk 0:02:52.7]} 14.
Ndb5 {[%clk 0:02:25.7]} 14... d4 {[%clk 0:02:51.6]} 15. Qb3+ {[%clk 0:02:10.2]}
15... Kh8 {[%clk 0:02:52.1]} 16. Rad1 {[%clk 0:02:10.7]} 16... Qb6 {[%clk
0:02:52.2]} 17. Na4 {[%clk 0:02:10]} 17... Qc6 {[%clk 0:02:41.8]} 18. Bf4 {[%clk
0:02:01.9]} 18... Be6 {[%clk 0:02:41]} 19. Qa3 {[%clk 0:01:54.6]} 19... Qxb5
{[%clk 0:02:40.4]} 20. Nxc5 {[%clk 0:01:54.1]} 20... Bf7 {[%clk 0:02:32.1]} 21.
Bd6 {[%clk 0:01:46.3]} 21... Rfe8 {[%clk 0:02:29]} 22. Na6 {[%clk 0:01:47.1]}
22... Nc6 {[%clk 0:02:23.3]} 23. Nc7 {[%clk 0:01:46.7]} 23... Qb7 {[%clk
0:02:17.3]} 24. Nxa8 {[%clk 0:01:46.9]} 24... Rxa8 {[%clk 0:02:18]} 25. Rc1
{[%clk 0:01:32.8]} 25... Rd8 {[%clk 0:02:03.7]} 26. Qc5 {[%clk 0:01:29.3]} 26...
Rc8 {[%clk 0:02:03.3]} 27. e5 {[%clk 0:01:21.5]} 27... fxe5 {[%clk 0:01:55.3]}
28. Rxe5 {[%clk 0:00:53.9]} 28... Kg8 {[%clk 0:01:48.2]} 29. Qb5 {[%clk
0:00:46.8]} 29... Qd7 {[%clk 0:01:45]} 30. Rec5 {[%clk 0:00:42.4]} 30... Be8
{[%clk 0:01:35.2]} 31. Bf4 {[%clk 0:00:37.6]} 31... d3 {[%clk 0:01:34.9]} 32.
Rd5 {[%clk 0:00:38.4]} 32... Qg4 {[%clk 0:01:27.4]} 33. Be3 {[%clk 0:00:25.5]}
33... Nd4 {[%clk 0:01:20.8]} 34. Qxd3 {[%clk 0:00:21.5]} 34... Ne2+ {[%clk
0:01:20.9]} 35. Kf1 {[%clk 0:00:17.8]} 35... Nxc1 {[%clk 0:01:20.8]} 0-1

[Event "*** Biggest EVER Titled Tuesday"]
[Site "Chess.com"]
[Date "2018.04.17"]
[Round "2"]
[White "Dr-Bassem"]
[Black "hilary444"]
[Result "0-1"]
[WhiteElo "2709"]
[BlackElo "2530"]
[TimeControl "180+2"]
[EndTime "13:21:36 PDT"]
[Termination "hilary444 won on time"]

1. e4 {[%clk 0:03:01.9]} 1... e5 {[%clk 0:02:59.6]} 2. Nf3 {[%clk 0:03:02.2]}
2... Nc6 {[%clk 0:03:00.8]} 3. Bb5 {[%clk 0:02:56.5]} 3... a6 {[%clk 0:03:01.6]}
4. Ba4 {[%clk 0:02:57.3]} 4... Nf6 {[%clk 0:03:02.2]} 5. Qe2 {[%clk 0:02:58.5]}
5... b5 {[%clk 0:03:00.4]} 6. Bb3 {[%clk 0:02:59.7]} 6... Be7 {[%clk 0:02:56.1]}
7. a4 {[%clk 0:03:01.1]} 7... b4 {[%clk 0:02:56.2]} 8. d4 {[%clk 0:03:01.7]}
8... d6 {[%clk 0:02:30]} 9. Qc4 {[%clk 0:03:01.9]} 9... O-O {[%clk 0:01:14.9]}
10. Qxc6 {[%clk 0:02:59.8]} 10... Rb8 {[%clk 0:01:16.3]} 11. dxe5 {[%clk
0:02:55.6]} 11... Bb7 {[%clk 0:01:17.5]} 12. Qc4 {[%clk 0:02:55]} 12... Nxe4
{[%clk 0:01:18.4]} 13. O-O {[%clk 0:02:51.8]} 13... a5 {[%clk 0:01:14.1]} 14.
Bf4 {[%clk 0:02:17.4]} 14... d5 {[%clk 0:01:11.8]} 15. Qe2 {[%clk 0:02:17.9]}
15... Nc5 {[%clk 0:01:10.2]} 16. Rd1 {[%clk 0:02:13.9]} 16... Ba6 {[%clk
0:01:04.7]} 17. Qe3 {[%clk 0:02:13.3]} 17... Nxb3 {[%clk 0:01:04.4]} 18. cxb3
{[%clk 0:02:02.6]} 18... c5 {[%clk 0:01:02]} 19. e6 {[%clk 0:01:56.1]} 19... Rb6
{[%clk 0:01:00.2]} 20. exf7+ {[%clk 0:01:56.7]} 20... Rxf7 {[%clk 0:01:00.3]}
21. Nbd2 {[%clk 0:01:38.7]} 21... d4 {[%clk 0:00:58.6]} 22. Qe5 {[%clk
0:01:29.8]} 22... Bd6 {[%clk 0:00:59.8]} 23. Qg5 {[%clk 0:01:30.6]} 23... Be7
{[%clk 0:00:57.6]} 24. Qe5 {[%clk 0:00:32.9]} 24... Bd6 {[%clk 0:00:57.4]} 25.
Qd5 {[%clk 0:00:25.8]} 25... Bb7 {[%clk 0:00:54.6]} 26. Qc4 {[%clk 0:00:24.1]}
26... Bxf4 {[%clk 0:00:51.4]} 27. Qxc5 {[%clk 0:00:22.4]} 27... Rg6 {[%clk
0:00:49.5]} 28. g3 {[%clk 0:00:18.8]} 28... Bxd2 {[%clk 0:00:44.3]} 29. Nxd2
{[%clk 0:00:19.1]} 29... Qh4 {[%clk 0:00:45.3]} 30. Nf1 {[%clk 0:00:18]} 30...
Qe4 {[%clk 0:00:42.3]} 0-1

[Event "*** Biggest EVER Titled Tuesday"]
[Site "Chess.com"]
[Date "2018.04.17"]
[Round "2"]
[White "Quiet_Desperation"]
[Black "AnonymousBread"]
[Result "1-0"]
[WhiteElo "2409"]
[BlackElo "2397"]
[TimeControl "180+2"]
[EndTime "13:21:38 PDT"]
[Termination "Quiet_Desperation won by resignation"]

1. e4 {[%clk 0:03:01.9]} 1... e5 {[%clk 0:03:00.4]} 2. Nf3 {[%clk 0:03:02.6]}
2... Nc6 {[%clk 0:03:01.1]} 3. Bb5 {[%clk 0:03:04.2]} 3... Nge7 {[%clk
0:03:01.7]} 4. c3 {[%clk 0:03:05]} 4... g6 {[%clk 0:03:02.6]} 5. d4 {[%clk
0:03:06]} 5... exd4 {[%clk 0:03:04.5]} 6. cxd4 {[%clk 0:03:07.3]} 6... a6 {[%clk
0:03:06.1]} 7. Ba4 {[%clk 0:03:02.1]} 7... b5 {[%clk 0:03:06.8]} 8. Bb3 {[%clk
0:03:01.7]} 8... d6 {[%clk 0:03:07.4]} 9. h3 {[%clk 0:03:02.4]} 9... Bg7 {[%clk
0:03:08.3]} 10. O-O {[%clk 0:03:03.6]} 10... O-O {[%clk 0:03:09.1]} 11. Nc3
{[%clk 0:03:01.3]} 11... Na5 {[%clk 0:03:09.8]} 12. Bc2 {[%clk 0:03:01.7]} 12...
c5 {[%clk 0:03:11.3]} 13. Rb1 {[%clk 0:02:55]} 13... Bb7 {[%clk 0:03:10.7]} 14.
Be3 {[%clk 0:02:48.2]} 14... Rc8 {[%clk 0:03:07.7]} 15. d5 {[%clk 0:02:42.3]}
15... Nc4 {[%clk 0:03:06.8]} 16. Bc1 {[%clk 0:02:43.2]} 16... h6 {[%clk
0:03:03.8]} 17. Qe1 {[%clk 0:02:22.9]} 17... Re8 {[%clk 0:02:59.7]} 18. b3
{[%clk 0:02:21.2]} 18... Nb6 {[%clk 0:03:00.4]} 19. Ne2 {[%clk 0:02:18.7]} 19...
f5 {[%clk 0:02:58.1]} 20. Nf4 {[%clk 0:02:10.9]} 20... fxe4 {[%clk 0:02:42]} 21.
Ne6 {[%clk 0:02:10.9]} 21... Qd7 {[%clk 0:02:35.7]} 22. Nxg7 {[%clk 0:02:11.7]}
22... exf3 {[%clk 0:02:32.6]} 23. Nxe8 {[%clk 0:02:11.6]} 23... Rxe8 {[%clk
0:02:28.3]} 24. Bb2 {[%clk 0:01:54.4]} 24... fxg2 {[%clk 0:02:24.3]} 25. Qc3
{[%clk 0:01:47.2]} 25... gxf1=Q+ {[%clk 0:01:39.9]} 26. Rxf1 {[%clk 0:01:44.3]}
26... Nf5 {[%clk 0:01:41.2]} 27. Bxf5 {[%clk 0:01:21.2]} 27... Qh7 {[%clk
0:01:40.5]} 28. Be6+ {[%clk 0:01:15.6]} 28... Rxe6 {[%clk 0:01:40.8]} 29. dxe6
{[%clk 0:01:17.4]} 29... Nd5 {[%clk 0:01:38.9]} 30. Qg3 {[%clk 0:01:07.4]} 30...
g5 {[%clk 0:01:23.7]} 31. Qxd6 {[%clk 0:01:03.3]} 31... Qc7 {[%clk 0:01:20.8]}
32. Qxc7 {[%clk 0:00:44]} 32... Nxc7 {[%clk 0:01:19.2]} 33. Re1 {[%clk 0:00:42]}
33... Kf8 {[%clk 0:01:16.2]} 34. e7+ {[%clk 0:00:42.3]} 34... Ke8 {[%clk
0:01:16.5]} 35. Bg7 {[%clk 0:00:41.3]} 35... h5 {[%clk 0:01:04.7]} 36. Bf6
{[%clk 0:00:41.7]} 36... g4 {[%clk 0:01:04.9]} 37. hxg4 {[%clk 0:00:42.4]} 37...
hxg4 {[%clk 0:01:06.8]} 38. Kh2 {[%clk 0:00:42.6]} 38... Bf3 {[%clk 0:01:04.3]}
39. Kg3 {[%clk 0:00:41.3]} 39... Nd5 {[%clk 0:01:04.2]} 40. Bg5 {[%clk
0:00:40.5]} 40... c4 {[%clk 0:01:04.7]} 41. bxc4 {[%clk 0:00:40.5]} 41... bxc4
{[%clk 0:01:06.6]} 42. Rb1 {[%clk 0:00:40.1]} 42... Nxe7 {[%clk 0:01:02]} 43.
Re1 {[%clk 0:00:39.7]} 43... c3 {[%clk 0:01:01.3]} 44. Rxe7+ {[%clk 0:00:40.5]}
44... Kf8 {[%clk 0:01:02.5]} 45. Rc7 {[%clk 0:00:40.9]} 1-0

[Event "*** Biggest EVER Titled Tuesday"]
[Site "Chess.com"]
[Date "2018.04.17"]
[Round "2"]
[White "krzyzan94"]
[Black "wonderfultime"]
[Result "1-0"]
[WhiteElo "2601"]
[BlackElo "2782"]
[TimeControl "180+2"]
[EndTime "13:21:40 PDT"]
[Termination "krzyzan94 won by resignation"]

1. Nf3 {[%clk 0:03:01.9]} 1... Nf6 {[%clk 0:02:58.9]} 2. g3 {[%clk 0:03:03.3]}
2... d5 {[%clk 0:02:59.6]} 3. Bg2 {[%clk 0:03:05.2]} 3... c6 {[%clk 0:03:00.9]}
4. d3 {[%clk 0:03:06]} 4... Bf5 {[%clk 0:02:58.8]} 5. O-O {[%clk 0:03:06.8]}
5... h6 {[%clk 0:03:00.2]} 6. Nbd2 {[%clk 0:03:08.1]} 6... e6 {[%clk 0:03:01.6]}
7. Qe1 {[%clk 0:03:09.4]} 7... Be7 {[%clk 0:02:58.9]} 8. e4 {[%clk 0:03:09.6]}
8... dxe4 {[%clk 0:03:00.2]} 9. dxe4 {[%clk 0:03:11.5]} 9... Bh7 {[%clk
0:03:01.5]} 10. Qe2 {[%clk 0:03:12.2]} 10... O-O {[%clk 0:03:02.4]} 11. c3
{[%clk 0:03:11.7]} 11... Na6 {[%clk 0:03:02]} 12. Ne5 {[%clk 0:03:12]} 12... Nd7
{[%clk 0:02:59.7]} 13. Ndc4 {[%clk 0:03:08.3]} 13... Nxe5 {[%clk 0:02:53.6]} 14.
Nxe5 {[%clk 0:03:10.2]} 14... Qc7 {[%clk 0:01:51.6]} 15. Nc4 {[%clk 0:03:02.6]}
15... e5 {[%clk 0:01:47.9]} 16. Be3 {[%clk 0:02:59.5]} 16... Nc5 {[%clk
0:01:47.3]} 17. Rad1 {[%clk 0:02:59.1]} 17... Nxe4 {[%clk 0:01:43]} 18. Bxh6
{[%clk 0:02:37.1]} 18... gxh6 {[%clk 0:00:38]} 19. Bxe4 {[%clk 0:02:37]} 19...
f5 {[%clk 0:00:39.9]} 20. Bg2 {[%clk 0:02:31.2]} 20... Bf6 {[%clk 0:00:41.3]}
21. Rd6 {[%clk 0:02:17.7]} 21... Rae8 {[%clk 0:00:38.2]} 22. Rfd1 {[%clk
0:02:17.8]} 22... Re7 {[%clk 0:00:39.3]} 23. Qh5 {[%clk 0:02:15.9]} 23... Bg7
{[%clk 0:00:38.9]} 24. Ne3 {[%clk 0:02:06.6]} 24... e4 {[%clk 0:00:33.7]} 25.
Bh3 {[%clk 0:02:00.1]} 25... Ref7 {[%clk 0:00:19.1]} 26. Ng2 {[%clk 0:01:54.2]}
26... Qb6 {[%clk 0:00:18.2]} 27. b3 {[%clk 0:01:44.6]} 27... Qc5 {[%clk
0:00:19.1]} 28. c4 {[%clk 0:01:41.3]} 28... a5 {[%clk 0:00:20.2]} 29. Nf4 {[%clk
0:01:41.7]} 29... e3 {[%clk 0:00:21.6]} 30. Ne6 {[%clk 0:01:34.4]} 30... exf2+
{[%clk 0:00:22.2]} 31. Kf1 {[%clk 0:01:33]} 31... Qe5 {[%clk 0:00:23.3]} 32.
Nxf8 {[%clk 0:01:31.8]} 32... Bxf8 {[%clk 0:00:25.2]} 33. R6d2 {[%clk
0:01:27.5]} 33... a4 {[%clk 0:00:25.9]} 34. Re2 {[%clk 0:01:26]} 34... Qc3
{[%clk 0:00:24.7]} 35. Rxf2 {[%clk 0:01:16]} 35... axb3 {[%clk 0:00:25.9]} 36.
axb3 {[%clk 0:01:17.9]} 36... Qxb3 {[%clk 0:00:27.8]} 37. Qe2 {[%clk 0:01:17.8]}
37... Bc5 {[%clk 0:00:26.1]} 38. Rf3 {[%clk 0:01:18.3]} 38... Qb4 {[%clk
0:00:25.3]} 39. Rd8+ {[%clk 0:01:16.7]} 39... Bf8 {[%clk 0:00:26.2]} 40. Kg2
{[%clk 0:01:17.5]} 40... Qc5 {[%clk 0:00:23.5]} 41. Re3 {[%clk 0:01:14.9]} 41...
f4 {[%clk 0:00:23.7]} 42. gxf4 {[%clk 0:01:16.8]} 42... Rxf4 {[%clk 0:00:23.8]}
43. Rg3+ {[%clk 0:01:17.5]} 43... Kh8 {[%clk 0:00:25.3]} 44. Qb2+ {[%clk
0:01:17.5]} 1-0

[Event "*** Biggest EVER Titled Tuesday"]
[Site "Chess.com"]
[Date "2018.04.17"]
[Round "2"]
[White "2Tilted"]
[Black "Princec7"]
[Result "1-0"]
[WhiteElo "2279"]
[BlackElo "2394"]
[TimeControl "180+2"]
[EndTime "13:21:40 PDT"]
[Termination "2Tilted won by resignation"]

1. d4 {[%clk 0:03:01.9]} 1... e6 {[%clk 0:02:59.9]} 2. Nf3 {[%clk 0:03:02.9]}
2... Nf6 {[%clk 0:03:00.3]} 3. c4 {[%clk 0:03:03.6]} 3... b6 {[%clk 0:03:01]} 4.
g3 {[%clk 0:03:04.3]} 4... Ba6 {[%clk 0:03:02]} 5. Qc2 {[%clk 0:03:05]} 5... Bb7
{[%clk 0:03:01.7]} 6. Bg2 {[%clk 0:03:05.9]} 6... c5 {[%clk 0:03:02.6]} 7. d5
{[%clk 0:03:07]} 7... exd5 {[%clk 0:03:03.5]} 8. cxd5 {[%clk 0:03:08.9]} 8...
Nxd5 {[%clk 0:03:03.9]} 9. O-O {[%clk 0:03:10]} 9... Be7 {[%clk 0:03:04.1]} 10.
Rd1 {[%clk 0:03:10.9]} 10... Nc6 {[%clk 0:03:02.1]} 11. Qa4 {[%clk 0:03:12.2]}
11... Nf6 {[%clk 0:03:01.9]} 12. Nc3 {[%clk 0:03:12.7]} 12... O-O {[%clk
0:03:02.9]} 13. e4 {[%clk 0:03:07.2]} 13... Ne8 {[%clk 0:02:39.6]} 14. Bf4
{[%clk 0:03:03.9]} 14... a6 {[%clk 0:02:24.7]} 15. Nd5 {[%clk 0:02:58.7]} 15...
b5 {[%clk 0:02:22.3]} 16. Qc2 {[%clk 0:02:59.3]} 16... Rc8 {[%clk 0:02:17.2]}
17. a3 {[%clk 0:02:59.2]} 17... g5 {[%clk 0:01:31.2]} 18. Nxe7+ {[%clk
0:02:55.8]} 18... Qxe7 {[%clk 0:01:31.9]} 19. Bxg5 {[%clk 0:02:54.8]} 19... f6
{[%clk 0:01:32.8]} 20. Bf4 {[%clk 0:02:54.5]} 20... Ne5 {[%clk 0:01:29.5]} 21.
Nh4 {[%clk 0:02:55]} 21... Ng7 {[%clk 0:01:29.5]} 22. Bh6 {[%clk 0:02:44.5]}
22... Rc6 {[%clk 0:00:50.5]} 23. Nf5 {[%clk 0:02:42.5]} 23... Nxf5 {[%clk
0:00:42.7]} 24. Bxf8 {[%clk 0:02:42.9]} 24... Kxf8 {[%clk 0:00:42.2]} 25. exf5
{[%clk 0:02:43.4]} 25... Rc7 {[%clk 0:00:43.3]} 26. Bxb7 {[%clk 0:02:41.9]}
26... Rxb7 {[%clk 0:00:45.1]} 27. Qe4 {[%clk 0:02:43]} 27... Rc7 {[%clk
0:00:41.1]} 28. Re1 {[%clk 0:02:38.4]} 28... d6 {[%clk 0:00:34.6]} 29. f4 {[%clk
0:02:36.5]} 29... Nc6 {[%clk 0:00:29.4]} 30. Qd5 {[%clk 0:02:36.9]} 30... Qd8
{[%clk 0:00:29.9]} 31. Re6 {[%clk 0:02:36.2]} 31... Nd4 {[%clk 0:00:19.7]} 32.
Rae1 {[%clk 0:02:35.2]} 32... Nxe6 {[%clk 0:00:19.8]} 33. fxe6 {[%clk
0:02:34.9]} 33... Re7 {[%clk 0:00:20.5]} 34. f5 {[%clk 0:02:30.8]} 34... c4
{[%clk 0:00:21.5]} 35. Rd1 {[%clk 0:02:29.8]} 35... Qb6+ {[%clk 0:00:22.2]} 36.
Kg2 {[%clk 0:02:29.6]} 36... Qe3 {[%clk 0:00:23]} 37. Qa8+ {[%clk 0:02:22.7]}
37... Kg7 {[%clk 0:00:22.8]} 38. Qf3 {[%clk 0:02:24.2]} 38... Qc5 {[%clk
0:00:20.6]} 39. Rd5 {[%clk 0:02:21]} 39... Qc6 {[%clk 0:00:20.3]} 40. Qg4+
{[%clk 0:02:20.1]} 40... Kf8 {[%clk 0:00:21.2]} 41. Qd4 {[%clk 0:02:21.6]} 41...
Kg7 {[%clk 0:00:21.4]} 42. Kh3 {[%clk 0:02:22]} 42... Re8 {[%clk 0:00:20.5]} 43.
Rxd6 {[%clk 0:02:22.1]} 43... Qh1 {[%clk 0:00:21.2]} 44. Rd7+ {[%clk 0:02:23.1]}
44... Kg8 {[%clk 0:00:22.3]} 45. Qd1 {[%clk 0:02:22.6]} 45... Qxd1 {[%clk
0:00:22.2]} 46. Rxd1 {[%clk 0:02:23.4]} 46... Rc8 {[%clk 0:00:23.3]} 47. Rd6
{[%clk 0:02:21.7]} 47... a5 {[%clk 0:00:24.3]} 48. Rb6 {[%clk 0:02:22.8]} 48...
b4 {[%clk 0:00:24.7]} 49. axb4 {[%clk 0:02:23.9]} 49... axb4 {[%clk 0:00:26.6]}
50. Rxb4 {[%clk 0:02:24.8]} 50... Kf8 {[%clk 0:00:27.8]} 51. Rb7 {[%clk
0:02:24.1]} 51... Rc5 {[%clk 0:00:28.3]} 52. g4 {[%clk 0:02:22]} 52... h5 {[%clk
0:00:28.6]} 53. Rf7+ {[%clk 0:02:21.5]} 53... Ke8 {[%clk 0:00:28.7]} 54. Rxf6
{[%clk 0:02:22.6]} 54... hxg4+ {[%clk 0:00:27.1]} 55. Kxg4 {[%clk 0:02:23.6]}
55... Rb5 {[%clk 0:00:28]} 56. Rh6 {[%clk 0:02:16.3]} 56... Rxb2 {[%clk
0:00:27.1]} 57. f6 {[%clk 0:02:17.4]} 57... Rg2+ {[%clk 0:00:27.1]} 58. Kf3
{[%clk 0:02:17.4]} 58... Rg8 {[%clk 0:00:26.6]} 59. f7+ {[%clk 0:02:18.4]} 1-0

[Event "*** Biggest EVER Titled Tuesday"]
[Site "Chess.com"]
[Date "2018.04.17"]
[Round "2"]
[White "Gajuchess"]
[Black "AkshatChandra"]
[Result "0-1"]
[WhiteElo "2591"]
[BlackElo "2788"]
[TimeControl "180+2"]
[EndTime "13:21:44 PDT"]
[Termination "AkshatChandra won on time"]

1. Nf3 {[%clk 0:03:00.2]} 1... d5 {[%clk 0:02:59.2]} 2. e3 {[%clk 0:03:00.6]}
2... Nf6 {[%clk 0:03:00.2]} 3. c4 {[%clk 0:03:01.8]} 3... e6 {[%clk 0:03:02.1]}
4. Nc3 {[%clk 0:03:03]} 4... Be7 {[%clk 0:03:02.1]} 5. b3 {[%clk 0:03:04.3]}
5... O-O {[%clk 0:03:03]} 6. Bb2 {[%clk 0:03:05.4]} 6... b6 {[%clk 0:03:03.9]}
7. cxd5 {[%clk 0:03:03.2]} 7... exd5 {[%clk 0:03:04.9]} 8. d4 {[%clk 0:03:01.2]}
8... Bb7 {[%clk 0:03:05.8]} 9. Be2 {[%clk 0:03:01.3]} 9... Nbd7 {[%clk
0:03:07.4]} 10. O-O {[%clk 0:03:02.5]} 10... a6 {[%clk 0:03:08.6]} 11. Ne5
{[%clk 0:03:00.5]} 11... Bd6 {[%clk 0:03:08.4]} 12. Nxd7 {[%clk 0:02:58]} 12...
Qxd7 {[%clk 0:03:07.7]} 13. Bf3 {[%clk 0:02:58.4]} 13... Ne4 {[%clk 0:03:07.2]}
14. Qc2 {[%clk 0:02:58.7]} 14... f5 {[%clk 0:03:06.6]} 15. Rac1 {[%clk
0:02:57.2]} 15... Rae8 {[%clk 0:03:06.4]} 16. a3 {[%clk 0:02:54.9]} 16... f4
{[%clk 0:03:02.3]} 17. exf4 {[%clk 0:02:46.4]} 17... Bxf4 {[%clk 0:02:42.5]} 18.
Rcd1 {[%clk 0:02:39.3]} 18... Bxh2+ {[%clk 0:02:17.1]} 19. Kxh2 {[%clk
0:02:35.7]} 19... Rxf3 {[%clk 0:02:18.6]} 20. Nxe4 {[%clk 0:01:22.2]} 20... Rxe4
{[%clk 0:01:25.6]} 21. Rc1 {[%clk 0:01:21.6]} 21... Rf7 {[%clk 0:01:24.1]} 22.
f3 {[%clk 0:01:20.3]} 22... Rh4+ {[%clk 0:01:15.5]} 23. Kg1 {[%clk 0:01:20.3]}
23... Qd6 {[%clk 0:01:15.2]} 24. Rce1 {[%clk 0:01:12.5]} 24... Bc6 {[%clk
0:01:04]} 25. Re5 {[%clk 0:01:11.8]} 25... Qh6 {[%clk 0:00:59.4]} 26. Kf2 {[%clk
0:00:46.1]} 26... Rh2 {[%clk 0:00:55.7]} 27. Rg1 {[%clk 0:00:24.1]} 27... Qh4+
{[%clk 0:00:53.4]} 28. Ke2 {[%clk 0:00:25]} 28... Bb5+ {[%clk 0:00:50.5]} 29.
Kd1 {[%clk 0:00:25.8]} 29... Rxf3 {[%clk 0:00:44.3]} 30. a4 {[%clk 0:00:22.1]}
30... Rd3+ {[%clk 0:00:30.2]} 31. Kc1 {[%clk 0:00:21.9]} 31... Rh1 {[%clk
0:00:31.5]} 0-1

[Event "*** Biggest EVER Titled Tuesday"]
[Site "Chess.com"]
[Date "2018.04.17"]
[Round "2"]
[White "Makalexa"]
[Black "BlackBoarder"]
[Result "0-1"]
[WhiteElo "2118"]
[BlackElo "2243"]
[TimeControl "180+2"]
[EndTime "13:21:46 PDT"]
[Termination "BlackBoarder won by resignation"]

1. e4 {[%clk 0:02:00.3]} 1... e6 {[%clk 0:03:00]} 2. d4 {[%clk 0:01:58.4]} 2...
d5 {[%clk 0:02:54.6]} 3. Nc3 {[%clk 0:01:59.4]} 3... Bb4 {[%clk 0:02:55.2]} 4.
e5 {[%clk 0:01:58.5]} 4... Ne7 {[%clk 0:02:55.7]} 5. a3 {[%clk 0:01:56.7]} 5...
Bxc3+ {[%clk 0:02:56.6]} 6. bxc3 {[%clk 0:01:57.4]} 6... c5 {[%clk 0:02:58.2]}
7. Qg4 {[%clk 0:01:57.4]} 7... O-O {[%clk 0:02:46.4]} 8. Bd3 {[%clk 0:01:56.4]}
8... f5 {[%clk 0:02:43.2]} 9. exf6 {[%clk 0:01:56.3]} 9... Rxf6 {[%clk
0:02:43.7]} 10. h4 {[%clk 0:01:52.7]} 10... e5 {[%clk 0:01:55.7]} 11. Qh5 {[%clk
0:01:32.8]} 11... e4 {[%clk 0:01:54.4]} 12. Bg5 {[%clk 0:01:26.8]} 12... exd3
{[%clk 0:01:14.9]} 13. Bxf6 {[%clk 0:01:25.3]} 13... gxf6 {[%clk 0:01:15.2]} 14.
cxd3 {[%clk 0:01:21.3]} 14... cxd4 {[%clk 0:01:09.1]} 15. cxd4 {[%clk
0:01:14.2]} 15... Qa5+ {[%clk 0:00:53]} 16. Ke2 {[%clk 0:01:07.4]} 16... Nbc6
{[%clk 0:00:40]} 17. Nf3 {[%clk 0:00:57.3]} 17... Bd7 {[%clk 0:00:33.7]} 18. g4
{[%clk 0:00:49.4]} 18... Re8 {[%clk 0:00:28.7]} 19. Kf1 {[%clk 0:00:49.6]} 19...
Qc3 {[%clk 0:00:20.1]} 20. Kg2 {[%clk 0:00:36]} 20... Nxd4 {[%clk 0:00:13.9]}
21. Rac1 {[%clk 0:00:25.2]} 21... Qxd3 {[%clk 0:00:13.8]} 22. Nxd4 {[%clk
0:00:19.8]} 22... Qxd4 {[%clk 0:00:15.7]} 23. f3 {[%clk 0:00:20.1]} 23... Ng6
{[%clk 0:00:13.9]} 24. Qh6 {[%clk 0:00:18.6]} 24... Nf4+ {[%clk 0:00:13.7]} 25.
Kg3 {[%clk 0:00:13.2]} 25... Ne2+ {[%clk 0:00:13.4]} 26. Kh3 {[%clk 0:00:13.5]}
26... Nxc1 {[%clk 0:00:13.5]} 27. Rxc1 {[%clk 0:00:14.3]} 27... Qe3 {[%clk
0:00:09.7]} 28. Rf1 {[%clk 0:00:15]} 28... Qxh6 {[%clk 0:00:10.1]} 0-1